fUSD/lending_fUSD_20250415
["ID","MTS","AMOUNT","RATE_DAILY","PERIOD"]
[358125021,1744756245701,-454.75664673,0.00017999,2]
[358125022,1744756245710,-500.0,0.00017999,2]
[358125023,1744756245720,-500.0,0.00017999,2]
[358125024,1744756245730,-500.0,0.00017999,2]
[358125025,1744756245740,-500.0,0.00017999,2]
[358125026,1744756245749,-500.0,0.00017999,2]
[358125027,1744756245758,-500.0,0.00017999,2]
[358125028,1744756245768,-500.0,0.00017999,2]
[358125029,1744756245778,-500.0,0.00017999,2]
[358125030,1744756245788,-500.0,0.00017999,2]
[358125031,1744756245798,-500.0,0.00017999,2]
[358125032,1744756245807,-500.97685524,0.00017999,2]
[358125033,1744756245817,-500.0,0.00017999,2]
[358125034,1744756245826,-500.0,0.00017999,2]
[358125035,1744756245836,-500.0,0.00017999,2]
[358125036,1744756245845,-500.0,0.00017999,2]
[358125037,1744756245856,-500.0,0.00017999,2]
[358125038,1744756245867,-500.0,0.00017999,2]
[358125039,1744756245879,-500.0,0.00017999,2]
[358125040,1744756245888,-500.0,0.00017999,2]
[358125041,1744756245898,-500.0,0.00017999,2]
[358125042,1744756245908,-530.08,0.00017999,2]
[358125043,1744756245917,-500.0,0.00017999,2]
[358125044,1744756245927,-500.0,0.00017999,2]
[358125045,1744756245937,-500.0,0.00017999,2]
[358125046,1744756245946,-500.0,0.00017999,2]
[358125047,1744756245956,-500.0,0.00017999,2]
[358125048,1744756245965,-500.0,0.00017999,2]
[358125049,1744756245976,-500.0,0.00017999,2]
[358125050,1744756245985,-609.02,0.00017999,2]
[358125051,1744756245994,-500.0,0.00017999,2]
[358125052,1744756246004,-500.0,0.00017999,2]
[358125053,1744756246017,-500.0,0.00017999,2]
[358125054,1744756246027,-500.0,0.00017999,2]
[358125055,1744756246037,-500.0,0.00017999,2]
[358125056,1744756246047,-339.55,0.00017999,2]
[358125057,1744756246057,-500.0,0.00017999,2]
[358125058,1744756246067,-500.0,0.00017999,2]
[358125059,1744756246077,-500.0,0.00017999,2]
[358125060,1744756246086,-500.0,0.00017999,2]
[358125061,1744756246096,-500.0,0.00017999,2]
[358125062,1744756246105,-647.65,0.00017999,2]
[358125063,1744756246116,-500.0,0.00017999,2]
[358125064,1744756246126,-500.0,0.00017999,2]
[358125065,1744756246135,-500.0,0.00017999,2]
[358125066,1744756246144,-500.0,0.00017999,2]
[358125067,1744756246154,-500.0,0.00017999,2]
[358125068,1744756246163,-579.13653394,0.00017999,2]
[358125070,1744756246172,-544.87190489,0.00017999,2]
[358125071,1744756246182,-500.0,0.00017999,2]
[358125072,1744756246191,-500.0,0.00017999,2]
[358125073,1744756246200,-500.0,0.00017999,2]
[358125074,1744756246210,-500.0,0.00017999,2]
[358125075,1744756246219,-500.0,0.00017999,2]
[358125076,1744756246228,-500.0,0.00017999,2]
[358125077,1744756246239,-500.0,0.00017999,2]
[358125078,1744756246250,-500.0,0.00017999,2]
[358125080,1744756246261,-589.98,0.00017999,2]
[358125081,1744756246270,-500.0,0.00017999,2]
[358125082,1744756246279,-515.43,0.00017999,2]
[358125083,1744756246289,-500.0,0.00017999,2]
[358125084,1744756246298,-515.43,0.00017999,2]
[358125085,1744756246308,-500.0,0.00017999,2]
[358125086,1744756246317,-515.43,0.00017999,2]
[358125087,1744756246329,-500.0,0.00017999,2]
[358125088,1744756246339,-515.43,0.00017999,2]
[358125089,1744756246348,-411.80907113,0.00017999,2]
[358125090,1744756246357,-500.0,0.00017999,2]
[358125091,1744756246367,-500.0,0.00017999,2]
[358125092,1744756246376,-515.43,0.00017999,2]
[358125093,1744756246386,-500.0,0.00017999,2]
[358125094,1744756246395,-515.43,0.00017999,2]
[358125095,1744756246403,-607.08490301,0.00017999,2]
[358125096,1744756246412,-515.43,0.00017999,2]
[358125097,1744756246421,-515.43,0.00017999,2]
[358125098,1744756246430,-515.43,0.00017999,2]
[358125099,1744756246439,-515.43,0.00017999,2]
[358125100,1744756246448,-515.43,0.00017999,2]
[358125101,1744756246457,-515.43,0.00017999,2]
[358125102,1744756246466,-515.43,0.00017999,2]
[358125103,1744756246474,-500.0,0.00017999,2]
[358125104,1744756246484,-515.43,0.00017999,2]
[358125105,1744756246493,-500.0,0.00017999,2]
[358125106,1744756246502,-515.43,0.00017999,2]
[358125108,1744756246511,-500.0,0.00017999,2]
[358125109,1744756246520,-515.43,0.00017999,2]
[358125110,1744756246530,-500.0,0.00017999,2]
[358125111,1744756246542,-515.43,0.00017999,2]
[358125113,1744756246553,-515.43,0.00017999,2]
[358125114,1744756246567,-500.0,0.00017999,2]
[358125115,1744756246576,-515.43,0.00017999,2]
[358125116,1744756246585,-341.56,0.00017999,2]
[358125117,1744756246595,-515.43,0.00017999,2]
[358125118,1744756246604,-515.43,0.00017999,2]
[358125119,1744756246613,-515.43,0.00017999,2]
[358125120,1744756246622,-515.43,0.00017999,2]
[358125121,1744756246631,-515.5926585,0.00017999,2]
[358125122,1744756246641,-500.0,0.00017999,2]
[358125123,1744756246650,-500.0,0.00017999,2]
[358125124,1744756246659,-500.0,0.00017999,2]
[358125125,1744756246668,-500.0,0.00017999,2]
[358125126,1744756246677,-500.0,0.00017999,2]
[358125127,1744756246686,-500.0,0.00017999,2]
[358125128,1744756246695,-500.0,0.00017999,2]
[358125129,1744756246704,-500.0,0.00017999,2]
[358125130,1744756246714,-500.0,0.00017999,2]
[358125131,1744756246723,-500.0,0.00017999,2]
[358125132,1744756246732,-500.0,0.00017999,2]
[358125133,1744756246741,-500.0,0.00017999,2]
[358125134,1744756246751,-500.0,0.00017999,2]
[358125135,1744756246760,-500.0,0.00017999,2]
[358125136,1744756246769,-500.0,0.00017999,2]
[358125137,1744756246778,-500.0,0.00017999,2]
[358125138,1744756246787,-500.0,0.00017999,2]
[358125139,1744756246797,-500.0,0.00017999,2]
[358125140,1744756246807,-500.0,0.00017999,2]
[358125141,1744756246817,-500.0,0.00017999,2]
[358125142,1744756246951,-153.76,0.00017999,2]
[358125143,1744756246980,-500.0,0.00017999,2]
[358125144,1744756246989,-500.0,0.00017999,2]
[358125145,1744756246999,-500.0,0.00017999,2]
[358125146,1744756247009,-500.0,0.00017999,2]
[358125147,1744756247018,-500.0,0.00017999,2]
[358125148,1744756247027,-500.0,0.00017999,2]
[358125149,1744756247037,-500.0,0.00017999,2]
[358125150,1744756247047,-500.0,0.00017999,2]
[358125151,1744756247056,-500.0,0.00017999,2]
[358125152,1744756247066,-500.0,0.00017999,2]
[358125153,1744756247076,-165.37,0.00017999,2]
[358125154,1744756247086,-1407.26,0.00017999,2]
[358125155,1744756247095,-1407.26,0.00017999,2]
[358125156,1744756247105,-1407.26,0.00017999,2]
[358125157,1744756247117,-1407.26,0.00017999,2]
[358125158,1744756247126,-1407.26,0.00017999,2]
[358125159,1744756247137,-1407.26,0.00017999,2]
[358125160,1744756247146,-1407.26,0.00017999,2]
[358125161,1744756247156,-1407.26,0.00017999,2]
[358125162,1744756247166,-1407.26,0.00017999,2]
[358125163,1744756247176,-1407.26,0.00017999,2]
[358125164,1744756247185,-1407.26,0.00017999,2]
[358125165,1744756247194,-1407.26,0.00017999,2]
[358125166,1744756247204,-1407.26,0.00017999,2]
[358125167,1744756247214,-500.0,0.00017999,2]
[358125168,1744756247227,-1407.26,0.00017999,2]
[358125169,1744756247237,-209.20103127,0.00017999,2]
[358125170,1744756247249,-1407.26,0.00017999,2]
[358125171,1744756247261,-1407.26,0.00017999,2]
[358125172,1744756247271,-1407.26,0.00017999,2]
[358125173,1744756247281,-1407.26,0.00017999,2]
[358125174,1744756247290,-1407.26,0.00017999,2]
[358125175,1744756247299,-1407.26,0.00017999,2]
[358125176,1744756247309,-1407.26,0.00017999,2]
[358125177,1744756247319,-1407.26,0.00017999,2]
[358125178,1744756247329,-1407.26,0.00017999,2]
[358125179,1744756247340,-1407.48942104,0.00017999,2]
[358125180,1744756247353,-500.0,0.00017999,2]
[358125181,1744756247364,-500.0,0.00017999,2]
[358125182,1744756247374,-521.22304761,0.00017999,2]
[358125183,1744756247384,-699.23,0.00017999,2]
[358125184,1744756247393,-699.23,0.00017999,2]
[358125185,1744756247403,-699.23,0.00017999,2]
[358125186,1744756247413,-699.23,0.00017999,2]
[358125187,1744756247423,-699.23,0.00017999,2]
[358125188,1744756247433,-699.23,0.00017999,2]
[358125189,1744756247443,-699.23,0.00017999,2]
[358125190,1744756247453,-699.23,0.00017999,2]
[358125191,1744756247463,-699.23,0.00017999,2]
[358125192,1744756247472,-699.23,0.00017999,2]
[358125193,1744756247482,-699.23,0.00017999,2]
[358125194,1744756247492,-699.23,0.00017999,2]
[358125195,1744756247501,-699.23,0.00017999,2]
[358125196,1744756247511,-699.23,0.00017999,2]
[358125197,1744756247521,-699.23,0.00017999,2]
[358125198,1744756247531,-699.23,0.00017999,2]
[358125199,1744756247542,-699.23,0.00017999,2]
[358125200,1744756247553,-699.23,0.00017999,2]
[358125201,1744756247563,-699.23,0.00017999,2]
[358125202,1744756247574,-699.23,0.00017999,2]
[358125203,1744756247584,-699.23,0.00017999,2]
[358125204,1744756247595,-699.23,0.00017999,2]
[358125205,1744756247605,-500.0,0.00017999,2]
[358125206,1744756247616,-699.23,0.00017999,2]
[358125207,1744756247626,-699.28,0.00017999,2]
[358125208,1744756247636,-1730.46,0.00017999,2]
[358125209,1744756247646,-1730.46,0.00017999,2]
[358125210,1744756247656,-1730.46,0.00017999,2]
[358125211,1744756247666,-1730.46,0.00017999,2]
[358125212,1744756247676,-1730.46,0.00017999,2]
[358125213,1744756247686,-1730.46,0.00017999,2]
[358125214,1744756247696,-1730.46,0.00017999,2]
[358125215,1744756247706,-1730.46,0.00017999,2]
[358125216,1744756247716,-1730.46,0.00017999,2]
[358125217,1744756247725,-1730.46,0.00017999,2]
[358125218,1744756247736,-1730.46,0.00017999,2]
[358125219,1744756247746,-1730.46,0.00017999,2]
[358125220,1744756247756,-1730.46,0.00017999,2]
[358125221,1744756247767,-1730.46,0.00017999,2]
[358125222,1744756247777,-1730.46,0.00017999,2]
[358125223,1744756247787,-1730.46,0.00017999,2]
[358125224,1744756247797,-500.0,0.00017999,2]
[358125225,1744756247808,-1730.46,0.00017999,2]
[358125226,1744756247818,-500.0,0.00017999,2]
[358125227,1744756247829,-1730.46,0.00017999,2]
[358125228,1744756247839,-500.0,0.00017999,2]
[358125229,1744756247849,-500.0,0.00017999,2]
[358125230,1744756247860,-1730.46,0.00017999,2]
[358125231,1744756247870,-273.52151039,0.00017999,2]
[358125232,1744756247881,-1730.46,0.00017999,2]
[358125233,1744756247891,-500.0,0.00017999,2]
[358125234,1744756247901,-1730.46,0.00017999,2]
[358125235,1744756247911,-1730.46,0.00017999,2]
[358125236,1744756247922,-1730.46,0.00017999,2]
[358125237,1744756247932,-500.0,0.00017999,2]
[358125238,1744756247941,-500.0,0.00017999,2]
[358125239,1744756247950,-1730.58598989,0.00017999,2]
[358125240,1744756247960,-407.1,0.00017999,2]
[358125241,1744756247970,-500.0,0.00017999,2]
[358125242,1744756247980,-500.0,0.00017999,2]
[358125243,1744756247990,-500.0,0.00017999,2]
[358125244,1744756247999,-500.0,0.00017999,2]
[358125245,1744756248010,-500.0,0.00017999,2]
[358125246,1744756248019,-500.0,0.00017999,2]
[358125247,1744756248029,-426.125,0.00017999,2]
[358125248,1744756248040,-326.43394485,0.00017999,2]
[358125249,1744756248050,-500.0,0.00017999,2]
[358125250,1744756248060,-500.0,0.00017999,2]
[358125251,1744756248069,-251041.98636478,0.00018,2]
[358125252,1744756248079,-816.0,0.00018,2]
[358125253,1744756248088,-1120.0,0.00018,2]
[358125254,1744756248098,-161283.42557994,0.00018,2]
[358125255,1744756248400,-540.09598391,0.00017885,2]
[358125256,1744756248410,-6459.90401609,0.00018,2]
[358125257,1744756248421,-77534.53384559,0.00018,2]
[358125258,1744756248432,-2290.7,0.00018,2]
[358125259,1744756248448,-267702.07766188,0.00018,2]
[358125260,1744756248457,-2000.0,0.00018,2]
[358125261,1744756248467,-214431.08469343,0.00018,2]
[358125262,1744756248479,-1897.74363316,0.00018,2]
[358125263,1744756248490,-354.79,0.00018,2]
[358125264,1744756248507,-591.39,0.00018,2]
[358125265,1744756248519,-493.80144382,0.00018,2]
[358125266,1744756248570,-17883.13528634,0.00018,2]
[358125267,1744756248754,-500.0,0.00017885,2]
[358125268,1744756248764,-512.9817563,0.00017885,2]
[358125269,1744756248774,-1288.0,0.000179,2]
[358125270,1744756248784,-500.0,0.00017984,2]
[358125271,1744756248794,-500.0,0.00017985,2]
[358125272,1744756248804,-500.0,0.00017987,2]
[358125273,1744756248814,-500.0,0.00017998,2]
[358125274,1744756248824,-3489.0354952,0.00018,2]
[358125275,1744756248836,-4192.25,0.00018,2]
[358125276,1744756250588,-389.47,0.00017999,2]
[358125277,1744756250597,-501.10598,0.00018,2]
[358125278,1744756250608,-1006.68,0.00018,2]
[358125279,1744756250622,-930.36,0.00018,2]
[358125280,1744756250634,-1073.5,0.00018,2]
[358125281,1744756250645,-546.38440035,0.00018,2]
[358125282,1744756250658,-972.78559965,0.00018,2]
[358125283,1744756250671,-1050.0,0.00018,2]
[358125284,1744756250682,-686.04743805,0.00018,2]
[358125285,1744756250693,-161035.31983413,0.00018,2]
[358125286,1744756250704,-831658.63412856,0.00018,2]
[358125287,1744756250809,-500.0,0.00017885,2]
[358125288,1744756250819,-501.23613927,0.00017885,2]
[358125289,1744756250829,-500.0,0.00017885,2]
[358125290,1744756250839,-500.0,0.00017984,2]
[358125291,1744756250848,-500.0,0.00017987,2]
[358125292,1744756250858,-7546.60703818,0.00018,2]
[358125293,1744756250871,-1626.90842461,0.00018,2]
[358125294,1744756250896,-4071.46576798,0.00018,2]
[358125295,1744756250907,-8411.58082463,0.00018,2]
[358125296,1744756250918,-3191.79999998,0.00018,2]
[358125298,1744756315354,1768.0,0.00017152,2]
[358125299,1744756357363,167.455306,0.0001728,2]
[358125300,1744756561040,3661.51,0.00016941,2]
[358125301,1744756588892,1852.42,0.00016896,2]
[358125302,1744756615395,206.26,0.0001689,2]
[358125303,1744756633397,176.31,0.0001689,2]
[358125304,1744756707746,1680.88,0.00016869,2]
[358125305,1744756710432,843.15,0.00014952,2]
[358125306,1744756710675,843.15,0.00017216,2]
[358125307,1744756718920,260.36,0.00017,2]
[358125308,1744756770717,1000.0,0.00016868,2]
[358125309,1744756852365,250.0,0.00016878,2]
[358125310,1744756857428,23900.0,0.00016873,2]
[358125311,1744756890430,250.0,0.00016896,2]
[358125312,1744756910395,2363.524173,0.0001749,2]
[358125313,1744757067397,154.51,0.00016827,2]
[358125314,1744757167669,5572.03,0.00016896,2]
[358125315,1744757207590,989.4,0.00016822,2]
[358125316,1744757252098,200.0,0.00016819,2]
[358125317,1744757311302,223.58,0.00016823,2]
[358125318,1744757326636,150.0,0.00016896,2]
[358125319,1744757380023,500.0,0.00016823,2]
[358125320,1744757388135,167.61,0.00017403,2]
[358125323,1744757432067,-167.97956071,0.00017652,2]
[358125324,1744757432077,-277.22043959,0.00017699,2]
[358125325,1744757432165,-62.25960641,0.00017699,2]
[358125326,1744757432175,-150.0,0.00017734,2]
[358125327,1744757432185,-93.04537759,0.00017737,2]
[358125328,1744757432261,-56.95462241,0.00017737,2]
[358125329,1744757432274,-150.0,0.00017744,2]
[358125330,1744757432284,-150.0,0.00017749,2]
[358125331,1744757432293,-150.0,0.00017752,2]
[358125332,1744757432302,-300.0,0.00017752,2]
[358125333,1744757432311,-550.0,0.00017752,2]
[358125334,1744757432321,-300.0,0.00017752,2]
[358125335,1744757432332,-13178.6918,0.00017753,2]
[358125336,1744757432344,-17890.4878,0.00017753,2]
[358125337,1744757432355,-1000.0,0.00017756,2]
[358125338,1744757432364,-150.0,0.00017759,2]
[358125339,1744757432375,-150.99,0.00017759,2]
[358125340,1744757432384,-150.0,0.00017761,2]
[358125341,1744757432393,-150.0,0.00017764,2]
[358125343,1744757432403,-150.0,0.00017766,2]
[358125344,1744757432412,-150.0,0.0001777,2]
[358125346,1744757432421,-2500.0,0.00017784,2]
[358125348,1744757432431,-2411.75284251,0.00017785,2]
[358125350,1744757432440,-8600.48413041,0.00017788,2]
[358125352,1744757432450,-669.80857617,0.00017788,2]
[358125354,1744757432459,-2471.32812213,0.00017789,2]
[358125355,1744757432468,-5000.0,0.00017789,2]
[358125356,1744757432478,-2411.7528425,0.00017798,2]
[358125357,1744757432487,-150.0,0.00017801,2]
[358125358,1744757432497,-2471.32812204,0.00017801,2]
[358125359,1744757432506,-2411.7528425,0.00017811,2]
[358125360,1744757432515,-150.0,0.00017811,2]
[358125361,1744757432524,-2471.32812204,0.00017814,2]
[358125362,1744757432533,-150.0,0.0001782,2]
[358125363,1744757432543,-2411.7528425,0.00017823,2]
[358125364,1744757432552,-2471.32812204,0.00017826,2]
[358125365,1744757432561,-150.0,0.0001783,2]
[358125366,1744757432570,-13854.53051707,0.0001783,2]
[358125369,1744757438125,-419.27886625,0.0001783,2]
[358125370,1744757438137,-53828.99995757,0.0001783,2]
[358125371,1744757438147,-150.0,0.00017833,2]
[358125372,1744757438156,-2411.7528425,0.00017836,2]
[358125373,1744757438166,-2471.32812204,0.00017838,2]
[358125374,1744757438176,-249.93328278,0.00017841,2]
[358125375,1744757438185,-2411.7528425,0.00017849,2]
[358125376,1744757438198,-2471.32812204,0.00017851,2]
[358125377,1744757438208,-2411.7528425,0.00017862,2]
[358125378,1744757438217,-2471.32812204,0.00017863,2]
[358125379,1744757438226,-500.0,0.00017873,2]
[358125380,1744757438236,-500.0,0.00017873,2]
[358125381,1744757438245,-151.0,0.00017873,2]
[358125382,1744757438255,-668.65185757,0.00017873,2]
[358125383,1744757438264,-207.4,0.00017873,2]
[358125384,1744757438273,-162.380719,0.00017873,2]
[358125385,1744757438283,-1000.0,0.00017873,2]
[358125386,1744757438291,-2411.7528425,0.00017874,2]
[358125387,1744757438301,-2471.32812204,0.00017875,2]
[358125388,1744757438310,-155.14526543,0.00017881,2]
[358125389,1744757438319,-500.0,0.00017883,2]
[358125390,1744757438328,-500.0,0.00017883,2]
[358125391,1744757438337,-306.59104268,0.00017883,2]
[358125392,1744757438346,-255.88952741,0.00017883,2]
[358125393,1744757438355,-500.0,0.00017884,2]
[358125394,1744757438364,-286.51135386,0.00017884,2]
[358125395,1744757438374,-500.0,0.00017884,2]
[358125396,1744757438383,-500.0,0.00017884,2]
[358125398,1744757438392,-500.0,0.00017884,2]
[358125400,1744757438402,-500.0,0.00017884,2]
[358125402,1744757438411,-500.0,0.00017884,2]
[358125404,1744757438420,-500.0,0.00017884,2]
[358125406,1744757438430,-500.0,0.00017884,2]
[358125408,1744757438439,-500.0,0.00017884,2]
[358125410,1744757438448,-500.0,0.00017884,2]
[358125411,1744757438458,-500.0,0.00017884,2]
[358125413,1744757438467,-500.0,0.00017884,2]
[358125415,1744757438478,-500.0,0.00017884,2]
[358125417,1744757438487,-567.92942306,0.00017884,2]
[358125419,1744757438496,-500.0,0.00017884,2]
[358125421,1744757438505,-500.0,0.00017884,2]
[358125423,1744757438515,-522.1170533,0.00017884,2]
[358125425,1744757438524,-500.0,0.00017884,2]
[358125427,1744757438533,-500.0,0.00017884,2]
[358125429,1744757438543,-300.0,0.00017884,2]
[358125431,1744757438553,-514.88606813,0.00017884,2]
[358125434,1744757438562,-500.0,0.00017884,2]
[358125437,1744757438572,-500.0,0.00017884,2]
[358125440,1744757438582,-500.0,0.00017884,2]
[358125443,1744757438591,-500.0,0.00017884,2]
[358125446,1744757438600,-199.53671834,0.00017884,2]
[358125449,1744757438609,-500.0,0.00017884,2]
[358125452,1744757438618,-471.23532985,0.00017884,2]
[358125454,1744757438628,-536.72414323,0.00017884,2]
[358125456,1744757438637,-500.0,0.00017884,2]
[358125458,1744757438646,-500.0,0.00017884,2]
[358125460,1744757438656,-500.0,0.00017884,2]
[358125462,1744757438665,-500.0,0.00017884,2]
[358125464,1744757438674,-500.0,0.00017884,2]
[358125466,1744757438683,-500.0,0.00017884,2]
[358125468,1744757438692,-500.0,0.00017884,2]
[358125470,1744757438702,-541.29529704,0.00017884,2]
[358125472,1744757438711,-500.0,0.00017884,2]
[358125474,1744757438721,-500.0,0.00017884,2]
[358125476,1744757438730,-500.0,0.00017884,2]
[358125478,1744757438739,-500.0,0.00017884,2]
[358125480,1744757438748,-500.0,0.00017884,2]
[358125482,1744757438758,-500.0,0.00017884,2]
[358125484,1744757438767,-500.0,0.00017884,2]
[358125486,1744757438776,-500.0,0.00017884,2]
[358125488,1744757438786,-499.99720778,0.00017884,2]
[358125490,1744757438795,-199.7853455,0.00017884,2]
[358125492,1744757438804,-500.0,0.00017884,2]
[358125494,1744757438813,-482.27430223,0.00017884,2]
[358125496,1744757438823,-361.08266326,0.00017884,2]
[358125498,1744757438832,-500.0,0.00017884,2]
[358125500,1744757438842,-500.0,0.00017884,2]
[358125502,1744757438852,-500.0,0.00017884,2]
[358125504,1744757438862,-500.0,0.00017884,2]
[358125506,1744757438871,-500.0,0.00017884,2]
[358125508,1744757438880,-500.87371289,0.00017884,2]
[358125510,1744757438890,-518.66828459,0.00017884,2]
[358125512,1744757438900,-641.15,0.00017884,2]
[358125514,1744757438909,-500.0,0.00017884,2]
[358125516,1744757438918,-501.05143195,0.00017884,2]
[358125517,1744757438932,-500.0,0.00017884,2]
[358125518,1744757438942,-520.76668856,0.00017884,2]
[358125519,1744757438951,-515.42087575,0.00017884,2]
[358125520,1744757438961,-500.0,0.00017884,2]
[358125521,1744757438971,-506.20674637,0.00017884,2]
[358125522,1744757438980,-500.0,0.00017884,2]
[358125523,1744757438990,-500.0,0.00017884,2]
[358125524,1744757439000,-500.0,0.00017884,2]
[358125525,1744757439009,-500.0,0.00017884,2]
[358125526,1744757439019,-500.0,0.00017884,2]
[358125527,1744757439029,-500.0,0.00017884,2]
[358125528,1744757439039,-500.0,0.00017884,2]
[358125529,1744757439048,-163.333703,0.00017884,2]
[358125530,1744757439058,-500.0,0.00017884,2]
[358125531,1744757439067,-511.22741076,0.00017884,2]
[358125532,1744757439077,-500.0,0.00017884,2]
[358125533,1744757439087,-500.0,0.00017884,2]
[358125534,1744757439097,-514.96285997,0.00017884,2]
[358125535,1744757439108,-244.00729794,0.00017884,2]
[358125536,1744757439122,-500.0,0.00017884,2]
[358125537,1744757439131,-468.39364258,0.00017884,2]
[358125538,1744757439141,-500.0,0.00017884,2]
[358125539,1744757439150,-1953.105022,0.00017884,2]
[358125540,1744757439161,-275.62768645,0.00017884,2]
[358125541,1744757439171,-500.0,0.00017884,2]
[358125542,1744757439180,-500.0,0.00017884,2]
[358125543,1744757439191,-500.0,0.00017884,2]
[358125544,1744757439202,-172.71816453,0.00017884,2]
[358125545,1744757439211,-500.0,0.00017884,2]
[358125546,1744757439221,-504.52658213,0.00017884,2]
[358125547,1744757439230,-514.9319361,0.00017884,2]
[358125548,1744757439240,-500.0,0.00017884,2]
[358125549,1744757439250,-500.0,0.00017884,2]
[358125550,1744757439259,-500.0,0.00017884,2]
[358125551,1744757439270,-500.0,0.00017884,2]
[358125552,1744757439279,-500.0,0.00017884,2]
[358125553,1744757439289,-273.09,0.00017884,2]
[358125554,1744757439299,-500.0,0.00017884,2]
[358125555,1744757439308,-500.0,0.00017884,2]
[358125556,1744757439318,-500.0,0.00017884,2]
[358125557,1744757439328,-500.0,0.00017884,2]
[358125558,1744757439338,-500.0,0.00017884,2]
[358125559,1744757439347,-500.0,0.00017884,2]
[358125560,1744757439356,-500.0,0.00017884,2]
[358125561,1744757439366,-540.8,0.00017884,2]
[358125562,1744757439376,-500.0,0.00017884,2]
[358125563,1744757439385,-500.0,0.00017884,2]
[358125564,1744757439395,-500.0,0.00017884,2]
[358125565,1744757439404,-500.0,0.00017884,2]
[358125566,1744757439414,-500.0,0.00017884,2]
[358125567,1744757439423,-521.7057988,0.00017884,2]
[358125568,1744757439432,-500.0,0.00017884,2]
[358125569,1744757439442,-500.0,0.00017884,2]
[358125570,1744757439452,-619.63864559,0.00017884,2]
[358125571,1744757439462,-501.59768556,0.00017884,2]
[358125572,1744757439471,-517.83,0.00017884,2]
[358125573,1744757439481,-568.66185001,0.00017884,2]
[358125574,1744757439490,-500.0,0.00017884,2]
[358125575,1744757439500,-500.0,0.00017884,2]
[358125576,1744757439510,-500.0,0.00017884,2]
[358125577,1744757439519,-508.79837233,0.00017884,2]
[358125578,1744757439529,-522.34859162,0.00017884,2]
[358125579,1744757439539,-500.0,0.00017884,2]
[358125580,1744757439548,-500.0,0.00017884,2]
[358125581,1744757439558,-500.0,0.00017884,2]
[358125582,1744757439568,-524.36265768,0.00017884,2]
[358125583,1744757439578,-500.0,0.00017884,2]
[358125584,1744757439587,-243.8,0.00017884,2]
[358125585,1744757439597,-500.0,0.00017884,2]
[358125586,1744757439606,-500.0,0.00017884,2]
[358125587,1744757439616,-505.26777218,0.00017884,2]
[358125588,1744757439626,-514.48353842,0.00017884,2]
[358125589,1744757439635,-500.0,0.00017884,2]
[358125590,1744757439645,-500.0,0.00017884,2]
[358125591,1744757439655,-500.0,0.00017884,2]
[358125592,1744757439665,-500.0,0.00017884,2]
[358125593,1744757439675,-500.0,0.00017884,2]
[358125594,1744757439685,-500.0,0.00017884,2]
[358125595,1744757439695,-500.0,0.00017884,2]
[358125596,1744757439705,-563.04050277,0.00017884,2]
[358125597,1744757439714,-500.0,0.00017884,2]
[358125598,1744757439723,-500.0,0.00017884,2]